bitfinex-derivatives/quotes_ETHF0:USTF0_20250417
["timestamp","ask_amount","ask_price","bid_price","bid_amount"]
[1744901488800,4.74285,1573.6,1573.5,1.27128]
[1744901489006,1.27128,1573.5,1573.4,3.2078]
[1744901489207,4.74291,1573.5,1573.2,6.7851]
[1744901489517,4.74293,1573.5,1573.2,6.7851]
[1744901489707,1.27137,1573.4,1573.2,8.05656]
[1744901489908,4.73147,1573.4,1573.2,8.05656]
[1744901490107,1.27144,1573.3,1573.2,8.05656]
[1744901490311,3.4601,1573.3,1573.2,8.05656]
[1744901490512,1.27142,1573.4,1573.2,8.05656]
[1744901491615,3.4601,1573.3,1573.2,8.05656]
[1744901492017,1.27136,1573.4,1573.3,1.2714]
[1744901492917,1.27134,1573.5,1573.3,1.2714]
[1744901493109,4.64146,1573.4,1573.3,1.2714]
[1744901493311,4.64146,1573.4,1573.3,3.2078]
[1744901493920,4.64146,1573.4,1573.3,4.47924]
[1744901494115,3.3701,1573.4,1573.3,4.47924]
[1744901494320,4.64146,1573.4,1573.3,3.2078]
[1744901497026,8.17376,1573.4,1573.3,3.2078]
[1744901497814,12.87096001,1573.4,1573.3,3.2078]
[1744901502423,8.17376,1573.4,1573.3,3.2078]
[1744901505124,1.27144,1573.3,1573.2,3.66]
[1744901505323,4.77714,1573.3,1573.2,3.66]
[1744901505524,1.27152,1573.2,1573.1,3.2078]
[1744901505725,1.27152,1573.2,1573.1,6.7066]
[1744901505726,4.77722,1573.2,1573.1,6.7066]
[1744901505932,1.27152,1573.2,1573.1,7.9782]
[1744901506831,1.27152,1573.2,1573.1,6.7066]
[1744901507727,4.77722,1573.2,1573.1,6.7066]
[1744901508331,1.27168,1573.0,1572.9,3.2078]
[1744901508720,1.27162,1573.1,1573.0,1.27163]
[1744901508926,1.27162,1573.1,1573.0,3.3172]
[1744901509333,1.27162,1573.1,1573.0,4.58888]
[1744901509631,6.71077,1573.4,1573.0,4.5888]
[1744901509831,1.2716,1573.1,1573.0,1.2716]
[1744901510037,1.2716,1573.1,1573.0,4.4794]
[1744901510524,1.2716,1573.1,1573.0,3.2078]
[1744901511120,1.27176,1572.9,1572.8,3.2078]
[1744901511722,4.67656,1572.9,1572.8,3.2078]
[1744901512930,1.27207,1572.6,1572.4,1.27212]
[1744901513126,1.27207,1572.6,1572.5,3.2078]
[1744901514129,4.81367,1572.6,1572.5,3.2078]
[1744901514333,8.32027,1572.6,1572.5,3.2078]
[1744901515435,1.2722,1572.4,1572.3,3.2078]
[1744901515732,4.77874,1572.5,1572.4,1.27216]
[1744901515932,1.27216,1572.4,1572.3,4.48001]
[1744901516227,1.2721,1572.5,1572.3,3.2078]
[1744901516433,1.2721,1572.5,1572.4,1.27216]
[1744901516834,1.27208,1572.5,1572.4,1.2721]
[1744901517237,1.27216,1572.4,1572.3,4.47997]
[1744901517432,3.5066,1572.6,1572.3,3.2078]
[1744901517736,1.27217,1572.4,1572.3,1.27218]
[1744901517939,4.71801,1572.5,1572.4,1.27216]
[1744901518232,1.27194,1572.7,1572.3,6.38839]
[1744901518436,1.27194,1572.7,1572.6,4.47976]
[1744901519435,7.9877,1572.8,1572.7,1.27192]
[1744901519631,6.7158,1572.8,1572.6,3.2078]
[1744901519837,1.27192,1572.7,1572.6,4.47974]
[1744901520039,7.98771,1572.8,1572.6,4.47974]
[1744901520339,7.98771,1572.8,1572.7,1.27192]
[1744901520640,1.27192,1572.7,1572.6,4.47974]
[1744901520939,7.9877,1572.8,1572.7,1.27192]
[1744901521133,8.1,1573.1,1572.6,6.38765]
[1744901521134,3.179,1573.1,1572.6,6.38765]
[1744901521333,4.69575,1573.0,1572.8,3.2078]
[1744901521639,1.27162,1573.1,1573.0,1.27165]
[1744901522439,1.27176,1572.9,1572.8,4.47959]
[1744901523342,1.27176,1572.9,1572.8,3.2078]
[1744901523541,1.27176,1572.9,1572.8,4.47964]
[1744901523839,6.55782,1573.2,1572.9,1.2717]
[1744901524039,1.27168,1573.0,1572.9,4.7115]
[1744901524241,3.379,1573.2,1573.0,1.27162]
[1744901524440,4.12111817,1573.4,1573.2,1.27152]
[1744901524640,7.01552904,1573.6,1573.3,12.84004]
[1744901524843,4.10441087,1573.6,1573.5,4.47908]
[1744901525043,8.25773666,1573.8,1573.7,1.27111]
[1744901525246,8.25773666,1573.8,1573.7,12.83971]
[1744901525741,8.25773666,1573.8,1573.7,17.83971]
[1744901525949,1.70421817,1573.9,1573.8,1.27103]
[1744901526147,11.82051407,1574.1,1574.0,1.27087]
[1744901526345,11.82051407,1574.1,1574.0,9.39967]
[1744901526544,11.82051407,1574.1,1574.0,55.19967]
[1744901526749,8.643349,1574.1,1574.0,55.19967]
[1744901527947,8.643349,1574.1,1574.0,50.19967]
[1744901529641,19.95679323,1574.3,1574.2,1.27071]
[1744901529642,3.548,1574.3,1574.2,1.27071]
[1744901529849,3.548,1574.3,1574.2,4.47851]
[1744901530346,4.81863,1574.3,1574.2,3.2078]
[1744901531246,9.81863,1574.3,1574.2,3.2078]
[1744901532048,4.81863,1574.3,1574.2,3.2078]
[1744901532947,1.27079,1574.1,1574.0,4.47867]
[1744901534554,1.27078,1574.2,1574.0,3.2078]
[1744901534754,3.3513,1574.1,1574.0,4.47866]
[1744901534945,4.62209,1574.1,1574.0,4.47866]
[1744901535249,4.62209,1574.1,1574.0,3.2078]
[1744901537245,1.27103,1573.8,1573.7,44.0078]
[1744901537450,1.27103,1573.8,1573.7,3.2078]
[1744901537649,1.27116,1573.7,1573.6,1.27116]
[1744901538351,6.64887,1573.9,1573.4,58.68672]
[1744901538554,1.27113,1573.7,1573.6,4.47895]
[1744901539047,1.27113,1573.7,1573.6,3.2078]
[1744901539548,1.27128,1573.5,1573.4,3.2078]
[1744901539945,1.27144,1573.3,1573.2,100.96285]
[1744901540145,1.27144,1573.3,1573.2,6.6414]
[1744901540450,1.27144,1573.3,1573.2,3.2078]
[1744901540652,1.27144,1573.3,1573.2,4.47932]
[1744901541050,3.3823,1573.4,1573.3,1.27144]
[1744901541240,4.65366,1573.4,1573.3,1.27144]
[1744901541448,4.61361,1573.5,1573.4,1.27136]
[1744901541646,1.27131,1573.5,1573.4,4.47916]
[1744901541849,1.27131,1573.5,1573.4,3.2078]
[1744901544754,1.27131,1573.5,1573.4,4.47916]
[1744901544956,1.27131,1573.5,1573.4,3.2078]
[1744901545154,1.27131,1573.5,1573.4,4.47916]
[1744901546556,1.27144,1573.3,1573.2,7.91288]
[1744901546947,1.27144,1573.3,1573.2,3.2078]
[1744901547359,4.64124,1573.3,1573.2,4.47932]
[1744901547857,4.64124,1573.3,1573.2,3.2078]
[1744901548257,1.27152,1573.2,1573.1,4.913]
[1744901548455,1.2716,1573.1,1573.0,3.2078]
[1744901549248,1.27168,1573.0,1572.9,1.27176]
[1744901549444,1.27168,1573.0,1572.9,4.47956]
[1744901549751,1.27184,1572.8,1572.7,46.98585]
[1744901549956,6.42293,1573.1,1572.7,6.18585]
[1744901549957,7.73253,1572.9,1572.7,6.18585]
[1744901550149,7.73253,1572.9,1572.8,3.2078]
[1744901550350,7.73253,1572.9,1572.7,6.18585]
[1744901550550,7.73253,1572.9,1572.8,3.2078]
[1744901552157,6.4607,1572.9,1572.6,45.27976]
[1744901552353,1.27192,1572.7,1572.6,45.27976]
[1744901552558,1.27192,1572.7,1572.6,1.27196]
[1744901552960,1.27192,1572.7,1572.5,9.44935]
[1744901553265,4.5699,1572.6,1572.5,9.44935]
[1744901553561,3.2979,1572.6,1572.5,9.44935]
[1744901554458,6.5057,1572.6,1572.3,0.50644277]
[1744901554762,1.27225,1572.3,1572.2,8.1228]
[1744901554964,1.27225,1572.3,1572.2,3.2078]
[1744901555159,3.4336,1572.4,1572.2,4.48013]
[1744901555359,1.27225,1572.3,1572.2,4.48013]
[1744901555561,1.27225,1572.3,1572.2,6.6779]
[1744901555760,1.27225,1572.3,1572.2,7.95023]
[1744901556767,3.4336,1572.4,1572.3,1.27225]
[1744901556958,4.70582,1572.4,1572.2,7.95016]
[1744901557265,1.27225,1572.3,1572.2,7.95016]
[1744901557464,4.61815,1572.3,1572.2,7.95016]
[1744901557868,4.61815,1572.3,1572.2,6.6779]
[1744901558261,4.61815,1572.3,1572.2,3.2078]
[1744901559568,1.27241,1572.1,1572.0,4.48029]
[1744901560072,1.27249,1572.0,1571.9,4.5477]
[1744901560267,4.45189,1572.0,1571.9,4.54777]
[1744901560464,1.27257,1571.9,1571.8,8.1238]
[1744901560774,4.45197,1571.9,1571.8,8.1238]
[1744901560964,4.45197,1571.9,1571.8,4.48039]
[1744901561366,4.45197,1571.9,1571.8,3.2078]
[1744901561566,1.27265,1571.8,1571.7,3.3839]
[1744901561763,4.45205,1571.8,1571.7,3.3839]
[1744901562574,1.27251,1572.0,1571.9,1.27252]
[1744901562973,4.75541,1572.0,1571.9,4.68942]
[1744901563177,4.75541,1572.0,1571.9,3.4169]
[1744901563878,1.27273,1571.7,1571.6,9.39154]
[1744901564180,1.27273,1571.7,1571.6,4.68964]
[1744901564679,1.27267,1571.8,1571.7,1.2727]
[1744901564874,4.75557,1571.8,1571.7,4.6896]
[1744901565076,3.4829,1571.8,1571.7,4.6896]
[1744901565488,4.75555,1571.8,1571.7,4.6896]
[1744901565777,3.4829,1571.8,1571.7,4.6896]
[1744901566374,4.42755,1572.0,1571.7,3.4169]
[1744901566571,1.27257,1571.9,1571.8,3.4536]
[1744901566779,4.67427,1571.9,1571.8,3.4536]
[1744901567082,4.67432,1571.9,1571.8,1.27265]
[1744901567280,3.4017,1571.9,1571.8,4.48045]
[1744901567677,4.67427,1571.9,1571.8,4.48045]
[1744901568090,4.67427,1571.9,1571.8,1.27265]
[1744901568286,1.27265,1571.8,1571.7,4.72627]
[1744901568488,4.67441,1571.8,1571.6,4.48054]
[1744901568692,1.27273,1571.7,1571.6,7.93414]
[1744901568884,4.58933,1571.7,1571.6,7.93414]
[1744901569287,4.58933,1571.7,1571.6,6.6614]
[1744901569492,1.27289,1571.5,1571.4,4.48071]
[1744901569691,1.27289,1571.5,1571.4,3.19851793]
[1744901570397,4.58949,1571.5,1571.4,3.19851793]
[1744901571388,3.1827,1571.3,1570.9,3.2078]
[1744901571588,6.37241,1571.2,1570.7,3.70844174]
[1744901571790,1.27352,1570.8,1570.6,4.48135]
[1744901571988,1.27338,1570.9,1570.6,3.2078]
[1744901572182,4.50398,1570.9,1570.8,3.2078]
[1744901572583,4.50398,1570.9,1570.7,4.63638]
[1744901572787,4.50398,1570.9,1570.8,3.2078]
[1744901572993,4.50398,1570.9,1570.7,45.43638]
[1744901573189,1.27346,1570.8,1570.7,3.3629]
[1744901573389,3.2306,1570.8,1570.7,3.2078]
[1744901573589,3.2306,1570.8,1570.6,42.58397252]
[1744901573786,1.27354,1570.7,1570.6,40.8]
[1744901573984,1.2737,1570.5,1570.4,8.40859625]
[1744901574186,4.913,1570.5,1570.0,3.2078]
[1744901574385,4.5044,1570.4,1570.2,1.27392]
[1744901574685,1.27389,1570.3,1570.1,1.27398]
[1744901574998,3.2306,1570.4,1570.2,3.3629]
[1744901575185,3.2306,1570.4,1570.0,45.79840755]
[1744901575391,1.27397,1570.2,1570.0,49.13430755]
[1744901575694,4.50441,1570.4,1570.2,1.27392]
[1744901576092,3.2306,1570.4,1570.0,47.86023755]
[1744901576291,1.27395,1570.2,1570.0,49.13429755]
[1744901576994,1.27392,1570.3,1570.1,1.27403]
[1744901577198,3.3219,1570.2,1570.1,1.27403]
[1744901577797,6.8723,1570.6,1570.0,47.86023755]
[1744901578098,1.27379,1570.4,1570.2,4.48169]
[1744901578297,4.62247,1570.5,1570.3,4.61687]
[1744901578493,1.27384,1570.4,1570.2,1.27393]
[1744901578698,6.5565,1570.4,1570.2,1.27393]
[1744901578998,7.83035,1570.4,1570.2,1.27393]
[1744901579697,7.83035,1570.4,1570.0,44.52433755]
[1744901579698,6.5565,1570.4,1570.0,44.52433755]
[1744901579891,6.5565,1570.4,1570.1,1.27396]
[1744901580196,7.83032,1570.4,1570.2,1.2739]
[1744901580392,3.3487,1570.4,1570.3,1.27387]
[1744901580886,6.8723,1570.6,1570.5,1.2737]
[1744901581190,10.2476,1570.6,1570.5,1.2737]
[1744901581389,8.10722,1570.6,1570.5,3.2535]
[1744901581585,8.10728,1570.6,1570.4,1.27374]
[1744901581796,1.2737,1570.5,1570.3,1.27381]
[1744901581995,3.3753,1570.4,1570.3,1.27381]
[1744901583103,4.73192,1570.6,1570.5,1.2737]
[1744901583905,4.73192,1570.6,1570.4,7.73502]
[1744901584203,4.73192,1570.6,1570.4,6.4613]
[1744901584398,3.1643,1570.5,1570.4,7.73509]
[1744901584799,3.4583,1570.6,1570.4,6.4613]
[1744901584995,3.1643,1570.7,1570.6,1.27362]
[1744901585500,4.43784,1570.7,1570.6,1.27362]
[1744901585703,3.1643,1570.7,1570.6,1.27362]
[1744901586007,4.43784,1570.7,1570.6,1.27362]
[1744901586509,3.3702,1570.9,1570.6,3.2078]
[1744901586694,4.48082,1571.4,1570.8,3.2078]
[1744901587003,8.09905,1571.6,1571.2,1.27314]
[1744901587004,3.1643,1571.3,1571.2,1.27314]
[1744901587201,3.1643,1571.3,1571.2,4.48094]
[1744901587592,3.3702,1571.6,1571.5,1.27289]
[1744901587797,3.4495,1571.7,1571.6,1.27281]
[1744901588101,8.1248,1572.0,1571.7,0.00928207]
[1744901588102,1.27265,1571.8,1571.7,0.00928207]
[1744901588491,1.26336793,1571.8,1571.5,1.27283]
[1744901588690,1.26336793,1571.8,1571.6,1.27281]
[1744901588896,3.2601,1571.7,1571.6,1.27281]
[1744901589100,4.72213,1571.9,1571.8,1.27265]
[1744901589101,3.4495,1571.9,1571.8,1.27265]
[1744901589294,3.2601,1571.9,1571.8,4.48045]
[1744901589801,3.2601,1571.9,1571.8,1.27265]
[1744901589999,3.2601,1571.9,1571.8,4.48045]
[1744901591107,11.4679,1571.9,1571.4,3.2078]
[1744901591405,1.27273,1571.7,1571.5,4.48064]
[1744901591605,1.27273,1571.7,1571.5,1.26355793]
[1744901591606,3.2987,1571.6,1571.5,1.26355793]
[1744901592104,3.2987,1571.6,1571.4,4.54791]
[1744901592397,1.27296,1571.5,1571.3,4.48082]
[1744901592603,4.57167,1571.4,1571.3,3.2078]
[1744901592805,1.27311,1571.3,1571.1,1.2732]
[1744901592995,3.3992,1571.2,1571.1,1.2732]
[1744901593196,4.67234,1571.2,1571.0,4.54824]
[1744901593392,1.27322,1571.1,1570.9,4.48114]
[1744901593596,3.3992,1571.0,1570.9,3.2078]
[1744901593797,4.6725,1571.0,1570.9,3.2078]
[1744901594407,7.8803,1571.0,1570.8,1.27345]
[1744901594608,1.27346,1570.8,1570.7,3.2078]
[1744901595198,3.4847,1570.9,1570.7,3.2078]
[1744901595399,3.3992,1570.8,1570.7,4.48133]
[1744901595600,1.27328,1571.1,1570.7,3.2078]
[1744901595797,3.3992,1571.0,1570.9,4.48117]
[1744901595998,4.72659,1571.3,1570.9,4.48117]
[1744901596197,6.801,1571.3,1571.2,1.27314]
[1744901596394,8.07406,1571.3,1571.1,1.27316]
[1744901596808,6.801,1571.3,1571.0,3.5448]
[1744901597000,8.07412,1571.3,1571.1,1.27322]
[1744901597306,6.801,1571.3,1571.2,1.27314]
[1744901598000,3.3475,1571.3,1571.2,1.27314]
[1744901598199,4.62056,1571.3,1570.9,6.39124]
[1744901598402,3.3475,1571.3,1571.2,1.27314]
[1744901598703,3.3475,1571.3,1571.1,4.481]
[1744901598901,1.27318,1571.2,1571.0,1.27324]
[1744901599106,3.4033,1571.1,1571.0,1.27324]
[1744901599299,3.4033,1571.1,1571.0,4.48104]
[1744901600105,3.4033,1571.1,1571.0,1.27324]
[1744901600602,3.4033,1571.1,1571.0,4.48104]
[1744901600805,3.4033,1571.1,1571.0,1.27324]
[1744901601302,1.27308,1571.3,1571.0,3.2078]
[1744901601506,3.4033,1571.2,1571.1,4.69272]
[1744901611011,3.4535,1571.6,1571.1,8.4195]
[1744901611211,6.961,1571.6,1571.5,1.27289]
[1744901611419,1.2726,1571.9,1571.6,1.27281]
[1744901611618,3.49821793,1571.9,1571.8,1.27265]
[1744901612513,3.49821793,1571.9,1571.8,4.48045]
[1744901612711,3.49821793,1571.9,1571.8,1.27265]
[1744901613921,1.27268,1571.8,1571.6,6.4194]
[1744901614122,3.49821793,1571.9,1571.8,1.27265]
[1744901614920,4.77078793,1571.9,1571.8,1.27265]
[1744901615118,1.27265,1571.8,1571.7,3.2837]
[1744901615415,3.2115,1571.8,1571.7,1.27273]
[1744901615717,4.48415,1571.8,1571.7,1.27273]
[1744901615914,3.2115,1571.8,1571.7,1.27273]
[1744901616114,4.4842,1571.8,1571.6,7.76425]
[1744901616309,3.2115,1571.8,1571.6,4.48055]
[1744901616619,4.48422,1571.8,1571.6,4.48055]
[1744901617120,1.27273,1571.7,1571.6,4.48055]
[1744901617516,1.27273,1571.7,1571.6,3.2078]
[1744901617718,8.18203,1571.7,1571.3,3.2078]
[1744901617920,8.18203,1571.7,1571.3,3.19851793]
[1744901617921,1.27297,1571.4,1571.3,3.19851793]
[1744901618320,3.18235,1571.5,1571.1,1.27316]
[1744901618624,3.18266,1571.3,1571.0,4.48108]
[1744901618822,1.27319,1571.2,1571.0,4.48108]
[1744901619223,1.27319,1571.2,1571.0,7.80658]
[1744901619421,1.27322,1571.1,1571.0,7.80658]
[1744901619724,1.2732,1571.2,1571.0,7.80658]
[1744901620324,13.09543,1571.6,1571.0,6.5333]
[1744901620517,1.27302,1571.4,1571.2,4.48091]
[1744901620718,1.27302,1571.4,1571.3,3.2018]
[1744901620917,1.27306,1571.3,1571.2,3.2078]
[1744901621422,1.27306,1571.3,1571.2,6.4096]
[1744901622125,1.27306,1571.3,1571.2,3.2078]
[1744901623219,1.27306,1571.3,1571.2,4.48094]
[1744901623719,1.27306,1571.3,1571.2,4.48089]
[1744901624025,1.27306,1571.3,1571.2,3.2078]
[1744901624421,1.27306,1571.3,1571.2,7.62544]
[1744901624928,1.27306,1571.3,1571.2,6.3523]
[1744901625526,1.27306,1571.3,1571.2,3.2078]
[1744901628028,1.27322,1571.1,1571.0,6.3523]
[1744901628328,1.27322,1571.1,1571.0,4.4811]
[1744901628622,4.41959,1571.2,1571.1,1.27322]
[1744901628828,3.1464,1571.2,1571.0,6.3899]
[1744901629129,4.41957,1571.2,1571.1,1.27322]
[1744901629327,3.1464,1571.2,1571.0,7.66314]
[1744901629532,1.27322,1571.1,1571.0,7.66314]
[1744901629724,4.41956,1571.2,1571.1,1.27322]
[1744901630031,1.27311,1571.3,1571.2,1.27314]
[1744901630223,1.27311,1571.3,1571.2,4.48094]
[1744901631226,1.27311,1571.3,1571.2,3.2078]
[1744901632131,1.27322,1571.1,1571.0,7.6632]
[1744901632331,1.2732,1571.2,1571.1,1.27321]
[1744901633027,4.64701,1571.3,1571.0,9.57314]
[1744901633235,1.27318,1571.2,1571.1,1.2732]
[1744901633432,4.64708,1571.2,1571.1,1.2732]
[1744901633937,1.27311,1571.3,1571.0,9.57313]
[1744901634137,12.54636,1571.4,1571.1,1.27316]
[1744901634337,1.27312,1571.3,1571.1,1.27316]
[1744901634536,4.64702,1571.3,1571.1,1.27316]
[1744901634733,3.3739,1571.3,1571.2,1.27314]
[1744901635035,3.3739,1571.3,1571.2,4.48094]
[1744901635432,4.64696,1571.3,1571.2,6.5845]
[1744901635630,4.64696,1571.3,1571.2,3.3767]
[1744901636239,4.64696,1571.3,1571.2,4.64984]
[1744901637039,3.3739,1571.3,1571.2,7.85764]
[1744901637239,4.64696,1571.3,1571.2,7.85764]
[1744901637839,4.64696,1571.3,1571.2,4.64984]
[1744901638839,1.27314,1571.2,1571.1,1.27315]
[1744901639040,4.40924,1571.2,1571.1,4.42035]
[1744901639737,3.1361,1571.2,1571.1,4.42035]
[1744901640039,1.27312,1571.3,1571.2,1.27314]
[1744901640239,4.40913,1571.4,1571.2,3.1472]
[1744901640537,3.1361,1571.4,1571.2,6.355]
[1744901640737,1.27306,1571.3,1571.2,6.355]
[1744901640938,1.27306,1571.3,1571.2,3.2078]
[1744901641137,4.40916,1571.3,1571.2,3.2078]
[1744901641641,4.40916,1571.3,1571.2,4.48094]
[1744901642444,3.1361,1571.3,1571.2,4.48094]
[1744901643141,3.1361,1571.3,1571.2,7.74404]
[1744901643339,5.99,1571.5,1571.3,1.27306]
[1744901643640,9.4200997,1571.8,1571.4,6.39023]
[1744901643847,6.1911997,1571.8,1571.7,1.27273]
[1744901644144,6.18191763,1571.8,1571.7,1.27273]
[1744901644345,6.18191763,1571.8,1571.7,4.53583]
[1744901644948,6.18191763,1571.8,1571.7,9.53583]
[1744901645137,2.97411763,1571.8,1571.7,51.84363]
[1744901645339,1.08972729,1571.8,1571.7,51.84363]
[1744901645541,0.40972729,1571.8,1571.7,51.84363]
[1744901645940,8.24685663,1571.9,1571.8,1.27265]
[1744901646138,8.24685663,1571.9,1571.8,7.67075]
[1744901646438,8.24685663,1571.9,1571.8,12.67075]
[1744901646638,8.24685663,1571.9,1571.8,53.47075]
[1744901647745,3.04116663,1571.9,1571.8,53.95641711]
[1744901647946,10.31913119,1572.0,1571.9,1.27257]
[1744901648147,10.31913119,1572.0,1571.9,9.51997]
[1744901648347,6.65456119,1572.0,1571.9,14.51997]
[1744901648548,0.65456119,1572.0,1571.9,55.31997]
[1744901648741,12.38204007,1572.4,1572.3,1.27225]
[1744901648936,12.38204007,1572.4,1572.3,4.48005]
[1744901649449,3.4734,1572.6,1572.5,1.27208]
[1744901649746,3.4734,1572.6,1572.5,4.47988]
[1744901650946,17.91508044,1572.8,1572.5,4.47988]
[1744901651149,4.16008044,1572.8,1572.7,4.47972]
[1744901651646,4.16008044,1572.8,1572.7,7.83862]
[1744901651948,4.16008044,1572.8,1572.7,12.73662]
[1744901653049,4.16008044,1572.8,1572.7,17.73662]
[1744901653250,3.13758044,1572.8,1572.7,17.73662]
[1744901653547,0.31808847,1572.8,1572.7,17.73662]
[1744901653851,7.90305,1573.2,1572.7,12.73662]
[1744901654046,3.233,1573.0,1572.9,1.27176]
[1744901654246,3.3164,1573.2,1573.1,1.2716]
[1744901654446,6.5494,1573.2,1573.1,4.4794]
[1744901655447,6.5494,1573.2,1573.1,3.2078]
[1744901655650,6.5494,1573.2,1573.1,4.4794]
[1744901657646,6.5494,1573.2,1573.1,3.2078]
[1744901657847,7.82092,1573.2,1573.1,3.2078]
[1744901658045,3.2078,1573.6,1573.1,3.2078]
[1744901658254,3.4259,1573.8,1573.4,4.47915]
[1744901658453,3.4259,1573.5,1573.3,9.37519]
[1744901658649,4.69718,1573.5,1573.4,3.2078]
[1744901660458,1.27136,1573.4,1573.3,4.896]
[1744901660757,4.57236,1573.4,1573.3,6.16744]
[1744901661161,3.301,1573.4,1573.3,1.27144]
[1744901662559,3.301,1573.4,1573.3,4.71294]
[1744901662756,1.27101,1573.9,1573.7,1.27106]
[1744901662956,4.70751,1573.9,1573.7,1.27106]
[1744901663359,3.4365,1573.9,1573.6,3.2078]
[1744901663552,1.2711,1573.8,1573.6,4.47898]
[1744901663755,3.4365,1573.7,1573.6,4.47898]
[1744901666461,1.27124,1573.6,1573.4,1.37019]
[1744901666658,3.2863,1573.5,1573.4,1.37019]
[1744901666859,3.2863,1573.5,1573.4,4.57799]
[1744901668757,4.55758,1573.5,1573.4,0.0989]
[1744901669160,1.27144,1573.3,1573.2,8.1018]
[1744901669461,1.27144,1573.3,1573.2,3.2078]
[1744901669762,3.2863,1573.5,1573.3,1.27143]
[1744901670062,3.5311,1573.4,1573.2,4.47925]
[1744901670359,5.99,1573.8,1573.5,1.27126]
[1744901670558,5.99,1573.8,1573.6,1.27119]
[1744901670758,1.27119,1573.6,1573.5,4.47901]
[1744901672562,1.27136,1573.4,1573.3,9.37317]
[1744901672862,1.27136,1573.4,1573.3,4.47917]
[1744901673053,1.27136,1573.4,1573.3,3.2078]
[1744901674159,12.6283,1573.5,1573.2,1.27146]
[1744901674364,4.73154,1573.3,1573.2,1.27146]
[1744901675364,3.4601,1573.3,1573.0,4.56437]
[1744901675656,4.60658,1573.2,1573.0,1.27162]
[1744901675861,4.6066,1573.1,1573.0,1.27162]
[1744901676050,4.6066,1573.1,1573.0,1.27168]
[1744901676255,3.335,1573.1,1573.0,1.27168]
[1744901676961,3.335,1573.1,1573.0,4.75818]
[1744901677961,4.6066,1573.1,1572.9,9.37349]
[1744901678358,3.5112,1573.0,1572.9,9.37349]
[1744901678864,4.78288,1573.0,1572.9,8.1018]
[1744901679357,4.78288,1573.0,1572.9,3.2078]
[1744901679664,4.78288,1573.0,1572.9,4.47956]
[1744901679965,4.78288,1573.0,1572.9,6.6142]
[1744901680664,3.5112,1573.0,1572.9,7.88596]
[1744901680964,3.5112,1573.0,1572.9,6.6142]
[1744901680965,4.78288,1573.0,1572.9,6.6142]
[1744901681264,3.5112,1573.0,1572.9,7.88596]
[1744901682163,12.39773,1573.3,1572.9,6.6142]
[1744901682363,1.2716,1573.1,1573.0,1.27166]
[1744901682563,1.2716,1573.1,1573.0,4.78636]
[1744901682760,9.2191,1573.3,1573.1,1.2716]
[1744901682966,6.694,1573.4,1573.3,1.27144]
[1744901683263,6.694,1573.4,1573.3,4.47924]
[1744901683466,7.96536,1573.4,1573.3,7.99394]
[1744901683764,6.694,1573.4,1573.3,7.99394]
[1744901683964,7.96536,1573.4,1573.3,7.99394]
[1744901684162,6.694,1573.4,1573.3,7.99394]
[1744901684463,6.694,1573.4,1573.1,4.889]
[1744901684659,4.61318,1573.4,1573.2,1.27147]
[1744901684965,3.2369,1573.3,1573.2,1.27147]
[1744901685166,3.2369,1573.3,1573.2,4.73967]
[1744901686265,4.50834,1573.3,1573.2,3.4682]
[1744901686564,4.50834,1573.3,1573.1,4.889]
[1744901686565,4.50834,1573.3,1573.1,6.16054]
[1744901686867,3.2369,1573.2,1573.1,9.62874]
[1744901693273,3.2369,1573.2,1573.1,4.73974]
[1744901694071,3.2369,1573.2,1573.1,1.27154]
[1744901694371,3.2369,1573.2,1573.1,4.70674]
[1744901694667,3.2369,1573.2,1573.1,1.27154]
[1744901694872,8.03272,1573.2,1573.0,3.2078]
[1744901695171,1.2716,1573.1,1573.0,4.47946]
[1744901695471,4.7179,1573.1,1572.9,4.7069]
[1744901695669,4.7179,1573.1,1573.0,3.2078]
[1744901695860,4.7179,1573.1,1572.9,45.5069]
[1744901696061,3.4463,1573.0,1572.9,45.5069]
[1744901696257,3.4463,1573.0,1572.9,4.7069]
[1744901697266,4.79587,1573.2,1572.9,6.61453]
[1744901697571,1.2716,1573.1,1573.0,8.00265]
[1744901697770,3.5325,1573.1,1573.0,8.00265]
[1744901698173,4.8041,1573.1,1573.0,8.00265]
[1744901699073,3.5325,1573.1,1573.0,8.00265]
[1744901700272,3.5243,1573.2,1573.1,1.2716]
[1744901700479,5.99,1573.6,1573.3,1.27144]
[1744901700771,13.97979,1573.8,1573.5,1.27128]
[1744901700970,13.97979,1573.8,1573.7,3.2078]
[1744901701673,6.7187,1573.8,1573.7,4.47891]
[1744901702078,7.98973,1573.8,1573.7,3.2078]
[1744901702471,6.7187,1573.8,1573.7,4.47891]
[1744901702671,7.98973,1573.8,1573.7,4.47891]
[1744901702970,9.9265,1573.8,1573.4,3.2078]
[1744901703174,1.27145,1573.3,1573.2,3.2078]
[1744901703568,1.27145,1573.3,1573.1,1.27157]
[1744901703773,1.27145,1573.3,1573.0,6.4882]
[1744901703774,1.27142,1573.4,1573.0,9.6674]
[1744901703970,5.99,1573.5,1573.4,1.27136]
[1744901704180,5.99,1573.5,1573.3,1.27137]
[1744901704181,7.26131,1573.5,1573.3,1.27137]
[1744901704384,5.99,1573.5,1573.4,4.47916]
[1744901704872,1.27143,1573.4,1573.2,13.29759625]
[1744901705076,1.27143,1573.4,1573.3,1.27144]
[1744901705377,7.26132,1573.5,1573.3,1.27138]
[1744901705579,7.26131,1573.5,1573.2,11.58724625]